{"text_format":"3","workbook":"xlsx","n_sheets":1,"sheets":["Shift Schedule"],"not_rendered":{"defined_names":1},"read":"whole","date_system":"1900"}

{"sheet":"Shift Schedule","index":0,"n_rows":59,"n_cols":13,"rows_kept":59,"merged":[[0,1,0,5],[1,2,1,4],[2,2,2,4],[2,10,2,12]]}
[null,"Shift Schedule"]
[null,"For the Week of: "]
[null,"Department Name: "]
[]
[null,"MONDAY","7:00 AM","8:00 AM","9:00 AM","10:00 AM","11:00 AM","12:00 PM","1:00 PM","2:00 PM","3:00 PM","Sick?","TOTAL"]
[null,"Kelly F","manager","manager","manager","manager","manager","manager","manager","manager","manager",null,{"$f":"COUNTIF(Table1[[#This Row],[7:00 AM]:[3:00 PM]],\"*\")","v":9}]
[null,"Tom Y",null,"cashier","cashier","cashier","cashier",{"$nulls":5},{"$f":"COUNTIF(Table1[[#This Row],[7:00 AM]:[3:00 PM]],\"*\")","v":4}]
[null,"James S",null,"front desk","front desk","front desk","front desk ","front desk","front desk","front desk",null,null,{"$f":"COUNTIF(Table1[[#This Row],[7:00 AM]:[3:00 PM]],\"*\")","v":7}]
[null,"Jon M",null,"front desk","front desk","front desk","front desk ","front desk","front desk","front desk",null,null,{"$f":"COUNTIF(Table1[[#This Row],[7:00 AM]:[3:00 PM]],\"*\")","v":7}]
[null,"Sean P",{"$nulls":9},"Sick",{"$f":"COUNTIF(Table1[[#This Row],[7:00 AM]:[3:00 PM]],\"*\")","v":0}]
[null,"Teresa A",{"$nulls":5},"cashier","cashier","cashier","cashier",null,{"$f":"COUNTIF(Table1[[#This Row],[7:00 AM]:[3:00 PM]],\"*\")","v":4}]
[]
[null,"TUESDAY","7:00 AM","8:00 AM","9:00 AM","10:00 AM","11:00 AM","12:00 PM","1:00 PM","2:00 PM","3:00 PM","Sick?","TOTAL"]
[null,"Kelly F","manager","manager","manager","manager","manager","manager","manager","manager","manager",null,{"$f":"COUNTIF(Table2[[#This Row],[7:00 AM]:[3:00 PM]],\"*\")","v":9}]
[null,"Tom Y",null,"cashier","cashier","cashier","cashier",{"$nulls":5},{"$f":"COUNTIF(Table2[[#This Row],[7:00 AM]:[3:00 PM]],\"*\")","v":4}]
[null,"James S",null,"front desk","front desk","front desk","front desk ","front desk","front desk","front desk",null,null,{"$f":"COUNTIF(Table2[[#This Row],[7:00 AM]:[3:00 PM]],\"*\")","v":7}]
[null,"Jon M",null,"front desk","front desk","front desk","front desk ","front desk","front desk","front desk",null,null,{"$f":"COUNTIF(Table2[[#This Row],[7:00 AM]:[3:00 PM]],\"*\")","v":7}]
[null,"Sean P",{"$nulls":9},"Sick",{"$f":"COUNTIF(Table2[[#This Row],[7:00 AM]:[3:00 PM]],\"*\")","v":0}]
[null,"Teresa A",{"$nulls":5},"cashier","cashier","cashier","cashier",null,{"$f":"COUNTIF(Table2[[#This Row],[7:00 AM]:[3:00 PM]],\"*\")","v":4}]
[]
[null,"WEDNESDAY","7:00 AM","8:00 AM","9:00 AM","10:00 AM","11:00 AM","12:00 PM","1:00 PM","2:00 PM","3:00 PM","Sick?","TOTAL"]
[null,"Kelly F","manager","manager","manager","manager","manager","manager","manager","manager","manager",null,{"$f":"COUNTIF(Table3[[#This Row],[7:00 AM]:[3:00 PM]],\"*\")","v":9}]
[null,"Tom Y",null,"cashier","cashier","cashier","cashier",{"$nulls":5},{"$f":"COUNTIF(Table3[[#This Row],[7:00 AM]:[3:00 PM]],\"*\")","v":4}]
[null,"James S",null,"front desk","front desk","front desk","front desk ","front desk","front desk","front desk",null,null,{"$f":"COUNTIF(Table3[[#This Row],[7:00 AM]:[3:00 PM]],\"*\")","v":7}]
[null,"Jon M",null,"front desk","front desk","front desk","front desk ","front desk","front desk","front desk",null,null,{"$f":"COUNTIF(Table3[[#This Row],[7:00 AM]:[3:00 PM]],\"*\")","v":7}]
[null,"Sean P",{"$nulls":9},"Sick",{"$f":"COUNTIF(Table3[[#This Row],[7:00 AM]:[3:00 PM]],\"*\")","v":0}]
[null,"Teresa A",{"$nulls":5},"cashier","cashier","cashier","cashier",null,{"$f":"COUNTIF(Table3[[#This Row],[7:00 AM]:[3:00 PM]],\"*\")","v":4}]
[]
[null,"THURSDAY","7:00 AM","8:00 AM","9:00 AM","10:00 AM","11:00 AM","12:00 PM","1:00 PM","2:00 PM","3:00 PM","Sick?","TOTAL"]
[null,"Kelly F","manager","manager","manager","manager","manager","manager","manager","manager","manager",null,{"$f":"COUNTIF(Table4[[#This Row],[7:00 AM]:[3:00 PM]],\"*\")","v":9}]
[null,"Tom Y",null,"cashier","cashier","cashier","cashier",{"$nulls":5},{"$f":"COUNTIF(Table4[[#This Row],[7:00 AM]:[3:00 PM]],\"*\")","v":4}]
[null,"James S",null,"front desk","front desk","front desk","front desk ","front desk","front desk","front desk",null,null,{"$f":"COUNTIF(Table4[[#This Row],[7:00 AM]:[3:00 PM]],\"*\")","v":7}]
[null,"Jon M",null,"front desk","front desk","front desk","front desk ","front desk","front desk","front desk",null,null,{"$f":"COUNTIF(Table4[[#This Row],[7:00 AM]:[3:00 PM]],\"*\")","v":7}]
[null,"Sean P",{"$nulls":9},"Sick",{"$f":"COUNTIF(Table4[[#This Row],[7:00 AM]:[3:00 PM]],\"*\")","v":0}]
[null,"Teresa A",{"$nulls":5},"cashier","cashier","cashier","cashier",null,{"$f":"COUNTIF(Table4[[#This Row],[7:00 AM]:[3:00 PM]],\"*\")","v":4}]
[]
[null,"FRIDAY","7:00 AM","8:00 AM","9:00 AM","10:00 AM","11:00 AM","12:00 PM","1:00 PM","2:00 PM","3:00 PM","Sick?","TOTAL"]
[null,"Kelly F","manager","manager","manager","manager","manager","manager","manager","manager","manager",null,{"$f":"COUNTIF(Table5[[#This Row],[7:00 AM]:[3:00 PM]],\"*\")","v":9}]
[null,"Tom Y",null,"cashier","cashier","cashier","cashier",{"$nulls":5},{"$f":"COUNTIF(Table5[[#This Row],[7:00 AM]:[3:00 PM]],\"*\")","v":4}]
[null,"James S",null,"front desk","front desk","front desk","front desk ","front desk","front desk","front desk",null,null,{"$f":"COUNTIF(Table5[[#This Row],[7:00 AM]:[3:00 PM]],\"*\")","v":7}]
[null,"Jon M",null,"front desk","front desk","front desk","front desk ","front desk","front desk","front desk",null,null,{"$f":"COUNTIF(Table5[[#This Row],[7:00 AM]:[3:00 PM]],\"*\")","v":7}]
[null,"Sean P",{"$nulls":9},"Sick",{"$f":"COUNTIF(Table5[[#This Row],[7:00 AM]:[3:00 PM]],\"*\")","v":0}]
[null,"Teresa A",{"$nulls":5},"cashier","cashier","cashier","cashier",null,{"$f":"COUNTIF(Table5[[#This Row],[7:00 AM]:[3:00 PM]],\"*\")","v":4}]
[]
[null,"SATURDAY","7:00 AM","8:00 AM","9:00 AM","10:00 AM","11:00 AM","12:00 PM","1:00 PM","2:00 PM","3:00 PM","Sick?","TOTAL"]
[null,"Kelly F","manager","manager","manager","manager","manager","manager","manager","manager","manager",null,{"$f":"COUNTIF(Table6[[#This Row],[7:00 AM]:[3:00 PM]],\"*\")","v":9}]
[null,"Tom Y",null,"cashier","cashier","cashier","cashier",{"$nulls":5},{"$f":"COUNTIF(Table6[[#This Row],[7:00 AM]:[3:00 PM]],\"*\")","v":4}]
[null,"James S",null,"front desk","front desk","front desk","front desk ","front desk","front desk","front desk",null,null,{"$f":"COUNTIF(Table6[[#This Row],[7:00 AM]:[3:00 PM]],\"*\")","v":7}]
[null,"Jon M",null,"front desk","front desk","front desk","front desk ","front desk","front desk","front desk",null,null,{"$f":"COUNTIF(Table6[[#This Row],[7:00 AM]:[3:00 PM]],\"*\")","v":7}]
[null,"Sean P",{"$nulls":9},"Sick",{"$f":"COUNTIF(Table6[[#This Row],[7:00 AM]:[3:00 PM]],\"*\")","v":0}]
[null,"Teresa A",{"$nulls":5},"cashier","cashier","cashier","cashier",null,{"$f":"COUNTIF(Table6[[#This Row],[7:00 AM]:[3:00 PM]],\"*\")","v":4}]
[]
[null,"SUNDAY","7:00 AM","8:00 AM","9:00 AM","10:00 AM","11:00 AM","12:00 PM","1:00 PM","2:00 PM","3:00 PM","Sick?","TOTAL"]
[null,"Kelly F","manager","manager","manager","manager","manager","manager","manager","manager","manager",null,{"$f":"COUNTIF(Table7[[#This Row],[7:00 AM]:[3:00 PM]],\"*\")","v":9}]
[null,"Tom Y",null,"cashier","cashier","cashier","cashier",{"$nulls":5},{"$f":"COUNTIF(Table7[[#This Row],[7:00 AM]:[3:00 PM]],\"*\")","v":4}]
[null,"James S",null,"front desk","front desk","front desk","front desk ","front desk","front desk","front desk",null,null,{"$f":"COUNTIF(Table7[[#This Row],[7:00 AM]:[3:00 PM]],\"*\")","v":7}]
[null,"Jon M",null,"front desk","front desk","front desk","front desk ","front desk","front desk","front desk",null,null,{"$f":"COUNTIF(Table7[[#This Row],[7:00 AM]:[3:00 PM]],\"*\")","v":7}]
[null,"Sean P",{"$nulls":9},"Sick",{"$f":"COUNTIF(Table7[[#This Row],[7:00 AM]:[3:00 PM]],\"*\")","v":0}]
[null,"Teresa A",{"$nulls":5},"cashier","cashier","cashier","cashier",null,{"$f":"COUNTIF(Table7[[#This Row],[7:00 AM]:[3:00 PM]],\"*\")","v":4}]